Cogmind - Beta 14 @@@ ROGUE MODE // 2024.08.07 @ 12:18:57 Player: Dumalacath Result: Destroyed by MI-5A1(R) with Subdweller Machine Gun Performance ------------- Evolutions (0) 0 Regions Visited (2) 400 Robots Destroyed (37) 185 Value Destroyed (925) 925 Prototype IDs (1) 20 Alien Tech Used (0) 0 Bonus (0) 0 TOTAL SCORE: 1530 Bonus ------- None Cogmind --------- Core Integrity 0/250 Matter 168/300 Energy 161/180 System Corruption 1% Temperature Cool (0) Movement Treading (160) Location -10/Subcaves Parts ------- > --- POWER (1) -------- Meta Core > --- PROPULSION (2+1) - Spiked Treads > --- UTILITY (2+1) ---- Sensor Array Makeshift Thermal Plating > --- WEAPON (2+1) ----- Subdweller Laser Subdweller Machine Gun > --- INVENTORY (5) ---- Disposable Heat Sink Signal Interpreter Subdweller Machine Gun Subdweller Shrapnel Launcher Peak State ------------ > --- POWER ------------ Meta Core > --- PROPULSION ------- Subdweller Monowheel Subdweller Monowheel > --- UTILITY ---------- Sensor Array Makeshift Thermal Plating > --- WEAPON ----------- Subdweller Machine Gun Subdweller Machine Gun > --- INVENTORY -------- Signal Interpreter Subdweller Shrapnel Launcher [Rating: 26] Favorites ----------- Power Light Ion Engine Engine Light Ion Engine Power Core Meta Core Propulsion Aluminum Leg Treads Spiked Treads Leg Aluminum Leg Wheel Subdweller Monowheel Utility Small Storage Unit Device Sensor Array Storage Small Storage Unit Protection Core Shielding Weapon Light Assault Rifle Energy Gun EM Pulse Gun Energy Cannon Subdweller Beam Cannon Ballistic Gun Light Assault Rifle Launcher Subdweller Shrapnel Launcher Build | -11 -10 -10 ------- Run | Yrd Mat Sub Slots Evolved . | . . . Power . | . . . Propulsion . | . . . Utility . | . . . Weapon . | . . . Parts Attached 47 | 7 14 26 Power 7 | 1 2 4 Engine 6 | 1 2 3 Core 1 | . . 1 Reactor . | . . . Propulsion 12 | 2 4 6 Treads 1 | . . 1 Leg 9 | 2 4 3 Wheel 2 | . . 2 Hover . | . . . Flight . | . . . Utility 8 | 2 1 5 Device 2 | 1 . 1 Storage 1 | 1 . . Processor . | . . . Hackware . | . . . Protection 5 | . 1 4 Artifact . | . . . Weapon 20 | 2 7 11 Energy Gun 2 | 1 . 1 Energy Cannon 1 | . . 1 Ballistic Gun 15 | 1 7 7 Ballistic Cannon . | . . . Launcher 2 | . . 2 Special Weapon . | . . . Impact Weapon . | . . . Slashing Weapon . | . . . Piercing Weapon . | . . . Special Melee Weapon . | . . . Unidentified Prototypes 1 | . . 1 Parts Lost 10 | . 2 8 Power 1 | . 1 . Propulsion 2 | . . 2 Utility 2 | . 1 1 Weapon 5 | . . 5 Highest Loss Streak 6 | . 1 6 To Critical Strikes . | . . . Average Slot Usage (%) 86 | . 99 75 Engine 11 | . 13 9 Core 1 | . . 3 Leg 22 | . 28 17 Wheel 1 | . . 1 Device 3 | . 3 3 Storage 7 | . 14 1 Protection 10 | . 10 11 Energy Gun 1 | . 2 1 Energy Cannon 2 | . . 3 Ballistic Gun 21 | . 25 17 Peak Build Rating 26 | 7 7 26 Average Rating 10 | 5 6 14 On Entrance 4 | . 7 7 Naked Turns . | . . . Heaviest Build 35 | 15 15 35 Greatest Support 40 | 20 20 40 Greatest Overweight (x) 7 | 3 . 7 Average Overweight (x) . | . . . Largest Inventory Capacity 8 | 8 8 8 Average Capacity 6 | 7 8 5 Most Carried 8 | 6 8 8 Average Carried 6 | 4 7 4 Final Capacity 8 | 8 8 5 Final Carried 8 | 6 8 4 Class Distribution -------------------- 43% | Mutant 34% | Scavenger-Mutant 22% | Subdweller-Mutant Dominant Class ---------------- Scavenger-Mutant | -10/Materials Subdweller-Mutant | -10/Subcaves Resources | -11 -10 -10 ----------- Run | Yrd Mat Sub Matter Collected 1054 | 275 371 408 Remotely . | . . . Salvage Created 1149 | 106 607 436 Parts 90 | 10 52 28 Haulers Intercepted 2 | . 2 . Recyclers Shooed 2 | . 2 . Parts Field Recycled . | . . . Retrieved Matter . | . . . Parts Self-Destructed 7 | . . 7 Prevented . | . . . Kills | -11 -10 -10 ------- Run | Yrd Mat Sub Combat Hostiles Destroyed 29 | . 16 13 Guns 22 | . 15 7 Cannons 3 | . . 3 AOE 3 | . 1 2 Classes Destroyed 6 | 1 4 1 Tunneler 4 | 4 . . Hauler 2 | . 2 . Watcher 2 | . 2 . Swarmer 9 | . 9 . Grunt 7 | . 7 . Subdweller 13 | . . 13 Best Kill Streak 6 | 4 4 6 Combat Bots Only 6 | . 4 6 Max Kills in Single Turn 2 | 1 2 1 Gunslinging 1 | . 1 . Exploded 1 | . 1 1 Melee . | . . . Uniques/NPCs Destroyed . | . . . Combat | -11 -10 -10 -------- Run | Yrd Mat Sub Hostile Shots Fired 150 | . 78 72 Missed 53 | . 26 27 Damage Taken 1810 | . 548 1262 Core 263 | . 92 171 Absorbed by Shields . | . . . Redirected to Shielding 9 | . 4 5 Ignored by Resistances 3 | . . 3 Core Remaining (%) 100 | 100 . . Volleys Fired 134 | 8 61 65 Largest 2 | 2 2 2 Hottest 120 | 60 60 120 Shots Fired 229 | 12 122 95 Gun 190 | 12 122 56 Cannon 30 | . . 30 Launcher 9 | . . 9 Special . | . . . Kinetic 173 | 8 108 57 Thermal 38 | . . 38 Explosive . | . . . Electromagnetic 18 | 4 14 . Robot Hit Streak 17 | 3 7 17 Robot Miss Streak 5 | 2 5 2 Penetration Max . | . . . Secondary Targets 2 | . 2 . Max Gunslinging Chain 1 | . 1 . Shots Hit Robots 125 | 6 64 55 Core Hits 57 | 4 30 23 Critical Kills 3 | . 1 2 Critical Parts Destroyed . | . . . Critical Strikes 4 | . 2 2 Meltdown 1 | . . 1 Destroy 2 | . 1 1 Corrupt 1 | . 1 . Melee Attacks . | . . . Impact . | . . . Slashing . | . . . Piercing . | . . . Sneak Attacks . | . . . Combat Hostiles . | . . . Follow-up Attacks . | . . . Damage Inflicted 2189 | 82 741 1366 Guns 1356 | 82 688 586 Cannons 220 | . . 220 Explosions 608 | . 48 560 Melee . | . . . Ramming 5 | . 5 . Kinetic 1724 | 56 564 1104 Thermal 310 | . 48 262 Explosive . | . . . Electromagnetic 150 | 26 124 . Impact . | . . . Slashing . | . . . Piercing . | . . . Highest Corruption 1 | . 1 1 Average Corruption 1 | . 1 1 Corruption Purged . | . . . Corruption Blocked . | . . . Effects 21 | . 3 18 Message Errors 3 | . . 3 Matter Fused 8 | . 3 5 Heat Flow Errors 5 | . . 5 Energy Discharges 3 | . . 3 Parts Rejected 1 | . . 1 Data Loss (minor) 1 | . . 1 Overload Shots . | . . . Overflow Damage 6 | . . 6 Projectiles . | . . . Explosions 6 | . . 6 Melee . | . . . Knockbacks . | . . . Impact . | . . . Kinetic . | . . . Secondary . | . . . Self-Inflicted Damage 83 | . 35 48 Shots 5 | . 1 4 Rammed . | . . . Targets Rammed 2 | . 2 . Kicked 2 | . 2 . Crushed . | . . . Highest Temperature 249 | . 54 249 Average Temperature 47 | . 19 83 Received Heat Transfer 545 | . 177 368 Siege Activations . | . . . Robots Corrupted . | . . . Combat Hostiles . | . . . Parts Fried . | . . . Impact Corruptions . | . . . Robots Melted 1 | . . 1 Combat Hostiles 1 | . . 1 Parts Melted 2 | . . 2 Heat Transferred 396 | . 50 346 Parts Sabotaged . | . . . Parts Stolen . | . . . Parts Stripped . | . . . Power Chain Reactions 1 | . 1 . Alert | -11 -10 -10 ------- Run | Yrd Mat Sub Peak Influence 310 | 20 310 . Initial 13 | . 13 . Average 108 | 5 115 . Maximum Alert Level 1 | . 1 . Low Security (%) 88 | 100 88 . Level 1 11 | . 11 . Level 2 . | . . . Level 3 . | . . . Level 4 . | . . . Level 5 . | . . . High Security . | . . . Max Security . | . . . Squads Dispatched 1 | . 1 . Investigation 1 | . 1 . Extermination . | . . . Reinforcement . | . . . Assault . | . . . Garrison . | . . . Intercept . | . . . Searches Triggered . | . . . Construction Impeded . | . . . Haulers Reinforced . | . . . Active Scanning Responses . | . . . Cargo Convoy Interrupts . | . . . Stealth | -11 -10 -10 --------- Run | Yrd Mat Sub Distress Signals . | . . . Communications Jammed . | . . . Distress Signals . | . . . Times Spotted 45 | . 31 14 Peak Tracking Total 6 | . 6 4 Tactical Retreats 2 | . 2 . Traps | -11 -10 -10 ------- Run | Yrd Mat Sub Traps Triggered 3 | . 1 2 Indirectly . | . . . Trap Hack Attempts . | . . . Triggered . | . . . Disarmed . | . . . Reprogrammed . | . . . Reused . | . . . Traps Extracted . | . . . Installed . | . . . Triggered . | . . . Machines | -11 -10 -10 ---------- Run | Yrd Mat Sub Machines Disabled . | . . . Max in Single Turn . | . . . Machines Repaired . | . . . Machines Dismantled . | . . . Machines Sabotaged . | . . . Overloaded Fab Kills . | . . . Hacking | -11 -10 -10 --------- Run | Yrd Mat Sub Machines Accessed 8 | . 8 . Terminals 8 | . 8 . Fabricators . | . . . Repair Stations . | . . . Recycling Units . | . . . Scanalyzers . | . . . Garrison Access . | . . . Total Hacks 23 | . 23 . Successful 8 | . 8 . Failed 15 | . 15 . Catastrophic 2 | . 2 . Database Lockouts . | . . . Manual 19 | . 19 . Terminals 23 | . 23 . Fabricators . | . . . Repair Stations . | . . . Recycling Units . | . . . Scanalyzers . | . . . Garrison Access . | . . . Terminal Hacks 1 | . 1 . Registered Components 1 | . 1 . Fabricator Hacks . | . . . Repair Station Hacks . | . . . Recycling Unit Hacks . | . . . Scanalyzer . | . . . Garrison Access Hacks . | . . . Unauthorized Hacks 7 | . 7 . Terminals 7 | . 7 . Botnet 7 | . 7 . Fabricators . | . . . Repair Stations . | . . . Recycling Units . | . . . Scanalyzers . | . . . Garrison Access . | . . . Data Cores Recovered . | . . . Used . | . . . Hacking Detections 8 | . 8 . Full Trace Events 1 | . 1 . Feedback Events . | . . . Feedback Blocked . | . . . Robot Schematics Acquired . | . . . Robots Built . | . . . Authchips . | . . . Time . | . . . Total Robot Build Rating . | . . . Part Schematics Acquired . | . . . Parts Built . | . . . Authchips . | . . . Time . | . . . Total Part Build Rating . | . . . Parts Repaired . | . . . Time . | . . . Parts Recycled . | . . . Recycled Matter . | . . . Retrieved Matter . | . . . Retrieved Components . | . . . Parts Scanalyzed . | . . . Part Schematics Acquired . | . . . Parts Damaged . | . . . Bothacking | -11 -10 -10 ------------ Run | Yrd Mat Sub Used RIF Installer . | . . . Robots Hacked . | . . . Non-combat . | . . . Combat . | . . . Robot Hacks Applied . | . . . Relay Couplers Released . | . . . Fabnet Peak Effective % . | . . . Robots Rewired . | . . . Allies Hacked . | . . . Hacks Repelled . | . . . Allies | -11 -10 -10 -------- Run | Yrd Mat Sub Total Allies . | . . . Largest Group . | . . . Highest-Rated Group . | . . . Highest-Rated Ally . | . . . Total Orders . | . . . Ally Attacks . | . . . Total Damage . | . . . Kills . | . . . Allies Corrupted . | . . . Allies Melted . | . . . Intel | -11 -10 -10 ------- Run | Yrd Mat Sub Robot Analysis Total . | . . . Derelict Logs Recovered 1 | . . 1 Drone Launches . | . . . Drone Recoveries . | . . . Exploration | -11 -10 -10 ------------- Run | Yrd Mat Sub Turns Passed 3714 | 120 1690 1904 Spaces Moved 1707 | 67 587 1053 Core 43 | 4 . 39 Treads 198 | . . 198 Legs 1285 | 63 587 635 Wheels 181 | . . 181 Hover . | . . . Flight . | . . . Fastest Speed 50 | 50 120 110 Average Speed 143 | 125 120 157 Slowest Speed 400 | 200 120 400 Overloaded Moves . | . . . Propulsion Burnouts . | . . . Robots Hopped . | . . . Cave-ins Triggered . | . . . Exploration Rate (%) 57 | 6 97 68 Regions Visited 2 Branch Regions 1 Pre-discovered Areas . | . . . Known Exits Taken . | . . . Unknown Exits Taken 2 | 1 1 . Scrap Searched 2 | . . 2 Spaces Dug . | . . . Terrain Destroyed 80 | . 2 78 Melee . | . . . Projectile 3 | . . 3 AOE 77 | . 2 75 Terrain Rammed . | . . . Walls Destroyed . | . . . Machines Disabled . | . . . Actions | -11 -10 -10 --------- Run | Yrd Mat Sub Total 2762 | 87 1466 1209 Wait 812 | . 778 34 Move 1705 | 66 586 1053 Hop . | . . . Pick Up 19 | 6 8 5 Fast Attach 23 | 7 3 13 Attach 10 | . 1 9 Detach 7 | . . 7 Swap 14 | . 10 4 Drop 31 | . 17 14 Fire 134 | 8 61 65 Melee . | . . . Ram . | . . . Kick 2 | . 2 . Crush . | . . . Escape Stasis . | . . . Rewire . | . . . Trap . | . . . Miscellaneous 5 | . . 5 Route ------- -11/Scrapyard -10/Materials (discovered 4 exits: [*Mat x2] / [*Min] / [*Sub]) -10/Subcaves (discovered 1 exit: [*Mat]) History --------- Turn | Location | Event 25 | -11/Scrapyard | Discovered new exit (range 15) 121 | -11/Scrapyard | Entered Materials 317 | -10/Materials | Build established: Mutant 442 | -10/Materials | Discovered new exit (range 12) 685 | -10/Materials | Discovered new exit (range 13) 871 | -10/Materials | Build established: Scavenger-Mutant 1455 | -10/Materials | Discovered new exit (range 16) 1591 | -10/Materials | Build established: Mutant 1789 | -10/Materials | Discovered new exit (range 6) 1811 | -10/Materials | Entered Subcaves 2097 | -10/Subcaves | Discovered new exit (range 6) 2639 | -10/Subcaves | A swath of the cavern ceiling suddenly collapsed 2694 | -10/Subcaves | Build established: Subdweller-Mutant 2951 | -10/Subcaves | A Subdweller sparked back to life 2959 | -10/Subcaves | Core integrity fell below 50% 2963 | -10/Subcaves | Ambushed by Subdweller buried in earth 2963 | -10/Subcaves | Ambushed by Subdweller buried in earth 2979 | -10/Subcaves | Core integrity fell below 20% 3029 | -10/Subcaves | Lost 6 parts (2n1u3w) 3075 | -10/Subcaves | Found Prototype Power Core 3075 | -10/Subcaves | Identified Meta Core 3077 | -10/Subcaves | Attached Meta Core, gained temporary slots: Propulsion, Utility, Weapon 3587 | -10/Subcaves | Build established: Mutant 3715 | -10/Subcaves | Destroyed by MI-5A1(R) with Subdweller Machine Gun Last Messages --------------- Launcher. 03094_ The unstable cave ceiling collapses. 03130_ Subatomizers dissect the Sub. Power Source. 03145_ Acquired Sub. Shrapnel Launcher. 03161_ Acquired Mak. Thermal Plating. 03227_ System corrupted: Matter fused (-10). 03234_ Sub. Monowheel shoots sparks and powers down. 03290_ Dropped Broken Sub. Monowheel. 03352_ RY-DCB(R) destroyed. 03370_ Acquired Spk. Treads. 03372_ Acquired 24 matter. 03376_ Acquired Sub. Laser. 03380_ Acquired Disposable Heat Sink. 03452_ ZT-RY3(R) destroyed. 03457_ Acquired 49 matter. 03651_ System corrupted: Component data lost. 03671_ System corrupted: Heat flow error (+131). 03715_ MI-5A1(R): "SUBSUUUUUB!" Map ----- +----------------------------------------------------+ | ## #######?######*!############?####????????????? | | # #?## #### ## ## ##???????????????????? | | ## ##?# ## ## ## ##??????????????????? | | ## #?# #??????????????????? | | # ##### ##### #??????????????????? | | ## #?########???## ### #?????????????????? | | #?????????????######?######?????????????????? | | ###?????????????????????????????????????????? | | ##????????????????????????????????????????? | | #????????????????????????????????????????? | | ##????????????????????????????????????????? | | ##?????????????????????????????????????????? | | ## #??????????????????????????????????????????? | | ?# ##??????????????????????????????????????????? | | ?## ##??????????????????????????????????????????? | | #?# ##?????????????????????????????????????????? | | ### #?????????????????????????????????????????? | | #?????????????????????????????????????????? | | ##?????????????????????????????????????????? | | #??????????????????????????????????????????? | | #???????????????????###????????????????????? | | ##????????####?????? ?????????????????????? | | ###?????## #????##R####??????????????????? | | ##????# ##??## ???????????????????? | | #???## #??# ?????????????????????? | | " " ##### #### @#??????????????????????? | | "### * ## #??????????????????????? | | "##?# ##??????????????????????? | | " "#### ## ###???????????????????????? | | " ### ### ## ##?????????????????????????? | | #### ##?#######??????????????????????????? | | "" #?# #???????????????????????????????????? | | ### #######???????????????????????????????????? | | ## ##??????????????????????????????????????? | | #??????????????????????????????????????? | | ### ##?????????????????????????????????????? | | ??### ##????????????????????????????????????? | | ##### #????????????????????????????????????? | | ## ##????????????????????????????????????? | | ##?????????????????????????????????????? | | ######??????????????????????????????????????? | | ##???????????????????????????????????????????? | | #????????????????????????????????????????????? | | " #???????????????????????????????????????????? | | #""" ????????????????????????????????????????? | | #"" ???????????????????????????????????????? | | " ???????#???????????????????????????????? | | #?? ?????? ##??????????????????????????????? | | ????# ????? ##?? ??????????????????????????? | | ###?# "???" ## ?????????????????????????? | +----------------------------------------------------+ Best States ------------- Heat Dissipation 25 Energy Generation 17 Energy Capacity 250 Matter Stores 300 Matter Capacity 300 Sight Range 16 Robot Scan Range 14 Terrain Scan Density 10 Armor Coverage 800 Resistance: TH 10 Core Shielding 20 Evasion (%) 55 Recoil Reduction 1 Item Schematics ----------------- None Robot Schematics ------------------ None Fabricated ------------ Nothing Alien Tech Used ----------------- None Achievements -------------- None Challenges ------------ None Game ------ Seed TachyonGrapheneDisintegrator Manual? 0 Play Time 00:25:08 Cumulative 75.0 hours Start 2024.08.07 @ 11:56:20 End 2024.08.07 @ 12:18:57 Sessions 1 Manual Loads 0 Difficulty Rogue Special Mode None Game No. 51 Rogue 51 Adventurer 0 Explorer 0 Win Type - Total 0 Types 0/0/0/0/0/0/0/0/0 Lore% 22 Gallery% 44 Achievement% 42 Wizard Run 0 Options --------- Layout 1 ASCII 0 Keyboard 0 Movement Numpad Keybinds 0 Fullscreen 2 Font 24/Smallcaps Map View 50x35 Zoom Use 0% Tactical HUD 1 Map Filters NONE Filters NONE Steam 1 RUN: c207f88b-d314-4945-9ee6-0b56f9697972